Workbook

Sheet Kuršėnai
A1: VĮ Valstybinių miškų urėdijos Kuršėnų regioninio padalinio informacija apie perkamus miškininkystės paslaugų kiekius 2025 metams
A2: Eil. | B2: Paslaugų grupės ir paslaugų pavadinimai | C2: Preliminarios paslaugų apimtys
A3: 1 | B3: Želdaviečių paruošimas miškų sodinimui, želdinių ir žėlinių priežiūra, jaunuolynų ugdymas, griovių šlaitų ir pagriovių, pakelių, kvartalinių ir ribinių linijų priežiūra | C3: Mato vnt. | D3: Gruzdžių girininkija 1 | E3: Gruzdžių girininkija 2 | F3: Kurtuvėnų girininkija | G3: Pažiužmėlių girininkija | H3: Rėkyvos girininkija | I3: Vainagių girininkija
A4: Pirkimo objekto dalies numeris | D4: 1 | E4: 2 | F4: 3 | G4: 4 | H4: 5 | I4: 6
A5: 1. | B5: Želdavietės paruošimas miško sodmenų sodinimui šalinant nepageidaujamus medžius, krūmus, žolinę augmeniją | C5: ha | D5: 0 | E5: 0 | F5: 0 | G5: 0 | H5: 0 | I5: 0
A6: 2. | B6: Miško želdinių ir žėlinių priežiūra šalinant žabus ir žolinę augmeniją | C6: ha | D6: 45 | E6: 45 | F6: 20 | G6: 20 | H6: 20 | I6: 80
A7: 3. | B7: Jaunuolynų ugdymas ir/ar retinimo kirtimai, negaminant likvidinės medienos | C7: ha | D7: 45 | E7: 40 | F7: 0 | G7: 0 | H7: 0 | I7: 44
A8: 4. | B8: Griovių šlaitų ir pagriovių priežiūra | C8: ha | D8: 0 | E8: 0 | F8: 0 | G8: 0 | H8: 0 | I8: 0
A9: 5. | B9: Pakelių priežiūra | C9: km | D9: 0 | E9: 0 | F9: 0 | G9: 0 | H9: 0 | I9: 0
A10: 6. | B10: kvartalinių ir ribinių linijų priežūra | C10: km | D10: 9 | E10: 9 | F10: 20 | G10: 5 | H10: 15 | I10: 23
A11: Preliminari 1 metų suma | D11: =+D5*301+D6*263+D7*299+D8*301+D9*53+D10*126 -> 26424 | E11: =+E5*301+E6*263+E7*299+E8*301+E9*53+E10*126 -> 24929 | F11: 7780 | G11: 5890 | H11: 7150 | I11: 37094
A12: Maksimali POD suma | D12: =+D11*3*1.3 -> 103053.6 | E12: =+E11*3*1.3 -> 97223.1 | F12: 30342 | G12: 22971 | H12: 27885 | I12: 144666.6

Sheet Mažeikiai
A1: VĮ Valstybinių miškų urėdijos Mažeikių regioninio padalinio informacija apie perkamus miškininkystės paslaugų kiekius 2025 metams
A2: Eil. | B2: Paslaugų grupės ir paslaugų pavadinimai | C2: Preliminarios paslaugų apimtys
A3: 1 | B3: Želdaviečių paruošimas miškų sodinimui, želdinių ir žėlinių priežiūra, jaunuolynų ugdymas, griovių šlaitų ir pagriovių, pakelių, kvartalinių ir ribinių linijų priežiūra | C3: Mato vnt. | D3: Akmenės girininkija | E3: Papilės girininkija
A4: Pirkimo objekto dalies numeris | D4: 7 | E4: 8
A5: 1. | B5: Želdavietės paruošimas miško sodmenų sodinimui šalinant nepageidaujamus medžius, krūmus, žolinę augmeniją | C5: ha | D5: 6 | E5: 6
A6: 2. | B6: Miško želdinių ir žėlinių priežiūra šalinant žabus ir žolinę augmeniją | C6: ha | D6: 28 | E6: 40
A7: 3. | B7: Jaunuolynų ugdymas ir/ar retinimo kirtimai, negaminant likvidinės medienos | C7: ha | D7: 48
A8: 4. | B8: Griovių šlaitų ir pagriovių priežiūra | C8: ha | D8: 10 | E8: 1
A9: 5. | B9: Pakelių priežiūra | C9: km
A10: 6. | B10: kvartalinių ir ribinių linijų priežūra | C10: km | D10: 6 | E10: 2
A11: Preliminari 1 metų suma | D11: =+D5*301+D6*263+D7*299+D8*301+D9*53+D10*126 -> 27288 | E11: =+E5*301+E6*263+E7*299+E8*301+E9*53+E10*126 -> 12879
A12: Maksimali POD suma | D12: =+D11*3*1.3 -> 106423.2 | E12: =+E11*3*1.3 -> 50228.1
A14: 2 | B14: Želdavietės paruošimas miško sodmenų sodinimui cheminiu būdu pašalinant nepageidaujamą augmeniją | C14: Mato vnt. | D14: Preliminarios paslaugų apimtys
D15: Mažeikių RP 1
A16: Pirkimo objekto dalies numeris | D16: 9
A17: 7. | B17: Želdavietės paruošimas miško sodmenų sodinimui cheminiu būdu pašalinant nepageidaujamą augmeniją | C17: ha | D17: 120
A18: Preliminari 1 metų suma | D18: =+D17*111 -> 13320
A19: Maksimali POD suma | D19: =+D18*3*1.3 -> 51948
A21: 3. | B21: Miško sodmenų sodinimas, želdinių ir žėlinių medelių ir jų liemenų apsauga nuo kanopinių žvėrių bei vabzdžių daromos žalos | C21: Mato vnt. | D21: Preliminarios paslaugų apimtys
D22: Žagarės; Skaistgirio; Beržėnų girininkijos
A23: Pirkimo objekto dalies numeris | D23: 10
A24: 8. | B24: Miško atkūrimas, įveisimas ir atsodinimas (medelių ir krūmų sodinimas) | C24: tūkst. vnt.
A25: 9. | B25: Želdinių, žėlinių apsauga nuo kanopinių žvėrių bei vabzdžių daromos žalos | C25: tūkst. vnt.
A26: 10. | B26: Želdinių, žėlinių ir medelių kamienų apsauga nuo kanopinių žvėrių daromos žalos | C26: tūkst. vnt. | D26: 30
A27: Preliminari 1 metų suma | D27: =+D24*178+D25*27+D26*390 -> 11700
A28: Maksimali POD suma | D28: =+D27*3*1.3 -> 45630
A30: 5. | B30: Sodmenų transportavimo paslaugos | C30: Mato vnt. | D30: Preliminarios paslaugų apimtys
D31: Mažeikių RP 2
A32: Pirkimo objekto dalies numeris | D32: 11
A33: 12. | B33: Sodmenų transportavimo paslaugos | C33: km | D33: 2000
A34: Preliminari 1 metų suma | D34: =+D33*1.5 -> 3000
A35: Maksimali POD suma | D35: =+D34*3*1.3 -> 11700

Sheet Nemenčinė
A1: VĮ Valstybinių miškų urėdijos Nemenčinės regioninio padalinio informacija apie perkamus miškininkystės paslaugų kiekius 2025 metams
A2: Eil. | B2: Paslaugų grupės ir paslaugų pavadinimai | C2: Preliminarios paslaugų apimtys
A3: 1 | B3: Želdaviečių paruošimas miškų sodinimui, želdinių ir žėlinių priežiūra, jaunuolynų ugdymas, griovių šlaitų ir pagriovių, pakelių, kvartalinių ir ribinių linijų priežiūra | C3: Mato vnt. | D3: Vilnios girininkija 1 | E3: Taurijos girininkija 1 | F3: Taurijos girininkija 2
A4: Pirkimo objekto dalies numeris | D4: 12 | E4: 13 | F4: 14
A5: 1. | B5: Želdavietės paruošimas miško sodmenų sodinimui šalinant nepageidaujamus medžius, krūmus, žolinę augmeniją | C5: ha | D5: 0 | E5: 0 | F5: 0
A6: 2. | B6: Miško želdinių ir žėlinių priežiūra šalinant žabus ir žolinę augmeniją | C6: ha | D6: 65 | E6: 60 | F6: 0
A7: 3. | B7: Jaunuolynų ugdymas ir/ar retinimo kirtimai, negaminant likvidinės medienos | C7: ha | D7: 0 | E7: 0 | F7: 30
A8: 4. | B8: Griovių šlaitų ir pagriovių priežiūra | C8: ha | D8: 0 | E8: 0 | F8: 2
A9: 5. | B9: Pakelių priežiūra | C9: km | D9: 0 | E9: 0 | F9: 0
A10: 6. | B10: kvartalinių ir ribinių linijų priežūra | C10: km | D10: 0 | E10: 0 | F10: 0
A11: Preliminari 1 metų suma | D11: =+D5*301+D6*263+D7*299+D8*301+D9*53+D10*126 -> 17095 | E11: =+E5*301+E6*263+E7*299+E8*301+E9*53+E10*126 -> 15780 | F11: 9572
A12: Maksimali POD suma | D12: =+D11*3*1.3 -> 66670.5 | E12: =+E11*3*1.3 -> 61542 | F12: 37330.8
A14: 3. | B14: Miško sodmenų sodinimas, želdinių ir žėlinių medelių ir jų liemenų apsauga nuo kanopinių žvėrių bei vabzdžių daromos žalos | C14: Mato vnt. | D14: Preliminarios paslaugų apimtys
D15: Nemenčinės girininkija 1 | E15: Nemenčinės girininkija 2 | F15: Pabradės girininkija 1 | G15: Pabradės girininkija 2 | H15: Vilnios girininkija 2 | I15: Vilnios girininkija 3 | J15: Taurijos girininkija 3 | K15: Taurijos girininkija 4 | L15: Taurijos girininkija 5 | M15: Meškerinės girininkija | N15: Asvejos girininkija | O15: Nemenčinės Neries Meškerinės girininkijos
A16: Pirkimo objekto dalies numeris | D16: 15 | E16: 16 | F16: 17 | G16: 18 | H16: 19 | I16: 20 | J16: 21 | K16: 22 | L16: 23 | M16: 24 | N16: 25 | O16: 26
A17: 8. | B17: Miško atkūrimas, įveisimas ir atsodinimas (medelių ir krūmų sodinimas) | C17: tūkst. vnt. | D17: 59 | E17: 0 | F17: 123 | G17: 60 | H17: 75 | I17: 77 | J17: 86 | K17: 88 | L17: 0 | M17: 0 | N17: 0 | O17: 0
A18: 9. | B18: Želdinių, žėlinių apsauga nuo kanopinių žvėrių bei vabzdžių daromos žalos | C18: tūkst. vnt. | D18: 0 | E18: 170 | F18: 280 | G18: 0 | H18: 0 | I18: 0 | J18: 0 | K18: 0 | L18: 550 | M18: 480 | N18: 205 | O18: 0
A19: 10. | B19: Želdinių, žėlinių ir medelių kamienų apsauga nuo kanopinių žvėrių daromos žalos | C19: tūkst. vnt. | D19: 0 | E19: 0 | F19: 0 | G19: 0 | H19: 0 | I19: 0 | J19: 0 | K19: 0 | L19: 0 | M19: 0 | N19: 0 | O19: 26
A20: Preliminari 1 metų suma | D20: =+D17*178+D18*27+D19*390 -> 10502 | E20: =+E17*178+E18*27+E19*390 -> 4590 | F20: 29454 | G20: 10680 | H20: 13350 | I20: 13706 | J20: 15308 | K20: 15664 | L20: 14850 | M20: 12960 | N20: 5535 | O20: 10140
A21: Maksimali POD suma | D21: =+D20*3*1.3 -> 40957.8 | E21: =+E20*3*1.3 -> 17901 | F21: 114870.6 | G21: 41652 | H21: 52065 | I21: 53453.4 | J21: 59701.2 | K21: 61089.6 | L21: 57915 | M21: 50544 | N21: 21586.5 | O21: 39546

Sheet Panevėžys
A1: VĮ Valstybinių miškų urėdijos Panevėžio regioninio padalinio informacija apie perkamus miškininkystės paslaugų kiekius 2025 metams
A2: Eil. | B2: Paslaugų grupės ir paslaugų pavadinimai | C2: Mato vnt. | D2: Preliminarios paslaugų apimtys
A3: 1 | B3: Želdaviečių paruošimas miškų sodinimui, želdinių ir žėlinių priežiūra, jaunuolynų ugdymas, griovių šlaitų ir pagriovių, pakelių, kvartalinių ir ribinių linijų priežiūra | D3: Rozalimo girininkija
A4: Pirkimo objekto dalies numeris | D4: 27
A5: 1. | B5: Želdavietės paruošimas miško sodmenų sodinimui šalinant nepageidaujamus medžius, krūmus, žolinę augmeniją | C5: ha | D5: 0
A6: 2. | B6: Miško želdinių ir žėlinių priežiūra šalinant žabus ir žolinę augmeniją | C6: ha | D6: 20
A7: 3. | B7: Jaunuolynų ugdymas ir/ar retinimo kirtimai, negaminant likvidinės medienos | C7: ha | D7: 20
A8: 4. | B8: Griovių šlaitų ir pagriovių priežiūra | C8: ha | D8: 0
A9: 5. | B9: Pakelių priežiūra | C9: km | D9: 0
A10: 6. | B10: kvartalinių ir ribinių linijų priežūra | C10: km | D10: 15
A11: Preliminari 1 metų suma | D11: =+D5*301+D6*263+D7*299+D8*301+D9*53+D10*126 -> 13130
A12: Maksimali POD suma | D12: =+D11*3*1.3 -> 51207
A14: 4. | B14: Želdinių, žėlinių apsauga nuo kanopinių žvėrių daromos žalos, tveriant vielos tinklo tvorą | C14: Mato vnt. | D14: Preliminarios paslaugų apimtys
D15: Panevėžio RP
A16: Pirkimo objekto dalies numeris | D16: 28
A17: 11. | B17: Želdinių, žėlinių apsauga nuo kanopinių žvėrių daromos žalos, tveriant vielos tinklo tvorą | C17: m | D17: 10000
A18: Preliminari 1 metų suma | D18: =+D17*1.85 -> 18500
A19: Maksimali POD suma | D19: =+D18*3*1.3 -> 72150

Sheet Prienai
A1: VĮ Valstybinių miškų urėdijos Prienų regioninio padalinio informacija apie perkamus miškininkystės paslaugų kiekius 2025 metams
A2: Eil. | B2: Paslaugų grupės ir paslaugų pavadinimai | C2: Preliminarios paslaugų apimtys
A3: 1 | B3: Želdaviečių paruošimas miškų sodinimui, želdinių ir žėlinių priežiūra, jaunuolynų ugdymas, griovių šlaitų ir pagriovių, pakelių, kvartalinių ir ribinių linijų priežiūra | C3: Mato vnt. | D3: Birštono girininkija | E3: Dušnionių girininkija
A4: Pirkimo objekto dalies numeris | D4: 29 | E4: 30
A5: 1. | B5: Želdavietės paruošimas miško sodmenų sodinimui šalinant nepageidaujamus medžius, krūmus, žolinę augmeniją | C5: ha | D5: 5 | E5: 20
A6: 2. | B6: Miško želdinių ir žėlinių priežiūra šalinant žabus ir žolinę augmeniją | C6: ha | D6: 20 | E6: 85
A7: 3. | B7: Jaunuolynų ugdymas ir/ar retinimo kirtimai, negaminant likvidinės medienos | C7: ha | D7: 20 | E7: 71
A8: 4. | B8: Griovių šlaitų ir pagriovių priežiūra | C8: ha | E8: 5
A9: 5. | B9: Pakelių priežiūra | C9: km
A10: 6. | B10: kvartalinių ir ribinių linijų priežūra | C10: km | E10: 10
A11: Preliminari 1 metų suma | D11: =+D5*301+D6*263+D7*299+D8*301+D9*53+D10*126 -> 12745 | E11: =+E5*301+E6*263+E7*299+E8*301+E9*53+E10*126 -> 52369
A12: Maksimali POD suma | D12: =+D11*3*1.3 -> 49705.5 | E12: =+E11*3*1.3 -> 204239.1

Sheet Radviliškis
A1: VĮ Valstybinių miškų urėdijos Radviliškio regioninio padalinio informacija apie perkamus miškininkystės paslaugų kiekius 2025 metams
A2: Eil. | B2: Paslaugų grupės ir paslaugų pavadinimai | C2: Preliminarios paslaugų apimtys
A3: 1 | B3: Želdaviečių paruošimas miškų sodinimui, želdinių ir žėlinių priežiūra, jaunuolynų ugdymas, griovių šlaitų ir pagriovių, pakelių, kvartalinių ir ribinių linijų priežiūra | C3: Mato vnt. | D3: Ąžuoloto girininkija | E3: Baisogalos girininkija 1 | F3: Josvainių girininkija | G3: Legečių girininkija | H3: Kėdainių girininkija | I3: Pašušvio girininkija | J3: Radviliškio girininkija
A4: Pirkimo objekto dalies numeris | D4: 31 | E4: 32 | F4: 33 | G4: 34 | H4: 35 | I4: 36 | J4: 37
A5: 1. | B5: Želdavietės paruošimas miško sodmenų sodinimui šalinant nepageidaujamus medžius, krūmus, žolinę augmeniją | C5: ha | D5: 4 | E5: 5 | F5: 20 | I5: 3 | J5: 4
A6: 2. | B6: Miško želdinių ir žėlinių priežiūra šalinant žabus ir žolinę augmeniją | C6: ha | D6: 35 | E6: 19 | H6: 24 | I6: 20
A7: 3. | B7: Jaunuolynų ugdymas ir/ar retinimo kirtimai, negaminant likvidinės medienos | C7: ha | D7: 49 | G7: 17.9 | I7: 26 | J7: 22
A8: 4. | B8: Griovių šlaitų ir pagriovių priežiūra | C8: ha | F8: 7 | I8: 8 | J8: 10
A9: 5. | B9: Pakelių priežiūra | C9: km | F9: 10 | J9: 5
A10: 6. | B10: kvartalinių ir ribinių linijų priežūra | C10: km | D10: 10 | F10: 17 | I10: 17 | J10: 30
A11: Preliminari 1 metų suma | D11: =+D5*301+D6*263+D7*299+D8*301+D9*53+D10*126 -> 26320 | E11: =+E5*301+E6*263+E7*299+E8*301+E9*53+E10*126 -> 6502 | F11: 10799 | G11: 5352.1 | H11: 6312 | I11: 18487 | J11: 14837
A12: Maksimali POD suma | D12: =+D11*3*1.3 -> 102648 | E12: =+E11*3*1.3 -> 25357.8 | F12: 42116.1 | G12: 20873.19 | H12: 24616.8 | I12: 72099.3 | J12: 57864.3
A14: 3. | B14: Miško sodmenų sodinimas, želdinių ir žėlinių medelių ir jų liemenų apsauga nuo kanopinių žvėrių bei vabzdžių daromos žalos | C14: Mato vnt. | D14: Preliminarios paslaugų apimtys
D15: Ąžuoloto, Gudžiūnų girininkijos | E15: Baisogalos girininkija 2 | F15: Josvainių, Kėdainių, Lančiūnavos girininkijos | G15: Legečių, Pašušvio, Radviliškio girininkijos
A16: Pirkimo objekto dalies numeris | D16: 38 | E16: 39 | F16: 40 | G16: 41
A17: 8. | B17: Miško atkūrimas, įveisimas ir atsodinimas (medelių ir krūmų sodinimas) | C17: tūkst. vnt.
A18: 9. | B18: Želdinių, žėlinių apsauga nuo kanopinių žvėrių bei vabzdžių daromos žalos | C18: tūkst. vnt. | E18: 139.5
A19: 10. | B19: Želdinių, žėlinių ir medelių kamienų apsauga nuo kanopinių žvėrių daromos žalos | C19: tūkst. vnt. | D19: 35 | E19: 40 | F19: 35 | G19: 56.5
A20: Preliminari 1 metų suma | D20: =+D17*178+D18*27+D19*390 -> 13650 | E20: =+E17*178+E18*27+E19*390 -> 19366.5 | F20: 13650 | G20: 22035
A21: Maksimali POD suma | D21: =+D20*3*1.3 -> 53235 | E21: =+E20*3*1.3 -> 75529.35 | F21: 53235 | G21: 85936.5
A23: 4. | B23: Želdinių, žėlinių apsauga nuo kanopinių žvėrių daromos žalos, tveriant vielos tinklo tvorą | C23: Mato vnt. | D23: Preliminarios paslaugų apimtys
D24: Radviliškio regioninio padalinio teritorija
A25: Pirkimo objekto dalies numeris | D25: 42
A26: 11. | B26: Želdinių, žėlinių apsauga nuo kanopinių žvėrių daromos žalos, tveriant vielos tinklo tvorą | C26: m | D26: 8758
A27: Preliminari 1 metų suma | D27: =+D26*1.85 -> 16202.3
A28: Maksimali POD suma | D28: =+D27*3*1.3 -> 63188.97

Sheet Raseiniai
A1: VĮ Valstybinių miškų urėdijos Raseinių regioninio padalinio informacija apie perkamus miškininkystės paslaugų kiekius 2025 metams
A2: Eil. | B2: Paslaugų grupės ir paslaugų pavadinimai | C2: Preliminarios paslaugų apimtys
A3: 1 | B3: Želdaviečių paruošimas miškų sodinimui, želdinių ir žėlinių priežiūra, jaunuolynų ugdymas, griovių šlaitų ir pagriovių, pakelių, kvartalinių ir ribinių linijų priežiūra | C3: Mato vnt. | D3: Betygalos, Dubysos, Tytuvėnų girininkijos | E3: Kražių, Užvenčio girininkijos 1 | F3: Šimkaičių, Viduklės girininkijos 1
A4: Pirkimo objekto dalies numeris | D4: 43 | E4: 44 | F4: 45
A5: 1. | B5: Želdavietės paruošimas miško sodmenų sodinimui šalinant nepageidaujamus medžius, krūmus, žolinę augmeniją | C5: ha | D5: 9 | E5: 0 | F5: 0
A6: 2. | B6: Miško želdinių ir žėlinių priežiūra šalinant žabus ir žolinę augmeniją | C6: ha | D6: 223 | E6: 20 | F6: 150
A7: 3. | B7: Jaunuolynų ugdymas ir/ar retinimo kirtimai, negaminant likvidinės medienos | C7: ha | D7: 90 | E7: 24 | F7: 100
A8: 4. | B8: Griovių šlaitų ir pagriovių priežiūra | C8: ha | D8: 23 | E8: 10 | F8: 20
A9: 5. | B9: Pakelių priežiūra | C9: km | D9: 0 | E9: 0 | F9: 0
A10: 6. | B10: kvartalinių ir ribinių linijų priežūra | C10: km | D10: 15 | E10: 10 | F10: 20
A11: Preliminari 1 metų suma | D11: =+D5*301+D6*263+D7*299+D8*301+D9*53+D10*126 -> 97081 | E11: =+E5*301+E6*263+E7*299+E8*301+E9*53+E10*126 -> 16706 | F11: 77890
A12: Maksimali POD suma | D12: =+D11*3*1.3 -> 378615.9 | E12: =+E11*3*1.3 -> 65153.4 | F12: 303771
A14: 3. | B14: Miško sodmenų sodinimas, želdinių ir žėlinių medelių ir jų liemenų apsauga nuo kanopinių žvėrių bei vabzdžių daromos žalos | C14: Mato vnt. | D14: Preliminarios paslaugų apimtys
D15: Betygalos, Dubysos girininkijos | E15: Kražių, Užvenčio girininkijos 2 | F15: Šimkaičių, Viduklės girininkijos 2
A16: Pirkimo objekto dalies numeris | D16: 46 | E16: 47 | F16: 48
A17: 8. | B17: Miško atkūrimas, įveisimas ir atsodinimas (medelių ir krūmų sodinimas) | C17: tūkst. vnt. | D17: 220 | E17: 0 | F17: 60
A18: 9. | B18: Želdinių, žėlinių apsauga nuo kanopinių žvėrių bei vabzdžių daromos žalos | C18: tūkst. vnt. | D18: 80 | E18: 165 | F18: 0
A19: 10. | B19: Želdinių, žėlinių ir medelių kamienų apsauga nuo kanopinių žvėrių daromos žalos | C19: tūkst. vnt. | D19: 0 | E19: 7 | F19: 6
A20: Preliminari 1 metų suma | D20: =+D17*178+D18*27+D19*390 -> 41320 | E20: =+E17*178+E18*27+E19*390 -> 7185 | F20: 13020
A21: Maksimali POD suma | D21: =+D20*3*1.3 -> 161148 | E21: =+E20*3*1.3 -> 28021.5 | F21: 50778
A23: 4. | B23: Želdinių, žėlinių apsauga nuo kanopinių žvėrių daromos žalos, tveriant vielos tinklo tvorą | C23: Mato vnt. | D23: Preliminarios paslaugų apimtys
D24: Raseinių RP
A25: Pirkimo objekto dalies numeris | D25: 49
A26: 11. | B26: Želdinių, žėlinių apsauga nuo kanopinių žvėrių daromos žalos, tveriant vielos tinklo tvorą | C26: m | D26: 17000
A27: Preliminari 1 metų suma | D27: =+D26*1.85 -> 31450
A28: Maksimali POD suma | D28: =+D27*3*1.3 -> 122655
A30: 5. | B30: Sodmenų transportavimo paslaugos | C30: Mato vnt. | D30: Preliminarios paslaugų apimtys
D31: Tytuvėnų girininkija | E31: Viduklės girininkija
A32: Pirkimo objekto dalies numeris | D32: 50 | E32: 51
A33: 12. | B33: Sodmenų transportavimo paslaugos | C33: km | D33: 150 | E33: 100
A34: Preliminari 1 metų suma | D34: =+D33*1.5 -> 225 | E34: =+E33*1.5 -> 150
A35: Maksimali POD suma | D35: =+D34*3*1.3 -> 877.5 | E35: =+E34*3*1.3 -> 585

Sheet Rokiškis
A1: VĮ Valstybinių miškų urėdijos Rokiškio regioninio padalinio informacija apie perkamus miškininkystės paslaugų kiekius 2025 metams
A2: Eil. | B2: Paslaugų grupės ir paslaugų pavadinimai | C2: Preliminarios paslaugų apimtys
A3: 1 | B3: Želdaviečių paruošimas miškų sodinimui, želdinių ir žėlinių priežiūra, jaunuolynų ugdymas, griovių šlaitų ir pagriovių, pakelių, kvartalinių ir ribinių linijų priežiūra | C3: Mato vnt. | D3: Juodupės girininkija 1 | E3: Kamajų girininkija 1 | F3: Obelių girininkija 1 | G3: Pandėlio girininkija | H3: Skapiškio girininkija | I3: Šimonių girininkija 1 | J3: Rokiškio regioninis padalinys 1
A4: Pirkimo objekto dalies numeris | D4: 52 | E4: 53 | F4: 54 | G4: 55 | H4: 56 | I4: 57 | J4: 58
A5: 1. | B5: Želdavietės paruošimas miško sodmenų sodinimui šalinant nepageidaujamus medžius, krūmus, žolinę augmeniją | C5: ha | J5: 30
A6: 2. | B6: Miško želdinių ir žėlinių priežiūra šalinant žabus ir žolinę augmeniją | C6: ha | D6: 35 | E6: 10 | F6: 30 | G6: 45 | H6: 70 | I6: 13
A7: 3. | B7: Jaunuolynų ugdymas ir/ar retinimo kirtimai, negaminant likvidinės medienos | C7: ha | D7: 15 | E7: 0 | F7: 10 | G7: 10 | H7: 25 | I7: 11
A8: 4. | B8: Griovių šlaitų ir pagriovių priežiūra | C8: ha | D8: 1 | E8: 1 | F8: 1 | G8: 1 | H8: 1 | I8: 1 | J8: =1+2+4-1-3 -> 3
A9: 5. | B9: Pakelių priežiūra | C9: km | D9: 1 | E9: 3 | F9: 1 | G9: 1 | H9: 1 | I9: 1 | J9: =9+7+20-1-1-2 -> 32
A10: 6. | B10: kvartalinių ir ribinių linijų priežūra | C10: km | D10: 13 | H10: 20 | I10: 28
A11: Preliminari 1 metų suma | D11: =+D5*301+D6*263+D7*299+D8*301+D9*53+D10*126 -> 15682 | E11: =+E5*301+E6*263+E7*299+E8*301+E9*53+E10*126 -> 3090 | F11: 11234 | G11: 15179 | H11: 28759 | I11: 10590 | J11: 11629
A12: Maksimali POD suma | D12: =+D11*3*1.3 -> 61159.8 | E12: =+E11*3*1.3 -> 12051 | F12: 43812.6 | G12: 59198.1 | H12: 112160.1 | I12: 41301 | J12: 45353.1
A14: 3. | B14: Miško sodmenų sodinimas, želdinių ir žėlinių medelių ir jų liemenų apsauga nuo kanopinių žvėrių bei vabzdžių daromos žalos | C14: Mato vnt. | D14: Preliminarios paslaugų apimtys
D15: Juodupės girininkija 2 | E15: Kamajų girininkija 2 | F15: Obelių girininkija 2 | G15: Kupiškio girininkija | H15: Šimonių girininkija 2
A16: Pirkimo objekto dalies numeris | D16: 59 | E16: 60 | F16: 61 | G16: 62 | H16: 63
A17: 8. | B17: Miško atkūrimas, įveisimas ir atsodinimas (medelių ir krūmų sodinimas) | C17: tūkst. vnt. | D17: 40 | E17: =90+25 -> 115 | F17: 149 | G17: 40 | H17: 160
A18: 9. | B18: Želdinių, žėlinių apsauga nuo kanopinių žvėrių bei vabzdžių daromos žalos | C18: tūkst. vnt. | D18: 37 | E18: 5 | F18: 35 | G18: 30 | H18: 180
A19: 10. | B19: Želdinių, žėlinių ir medelių kamienų apsauga nuo kanopinių žvėrių daromos žalos | C19: tūkst. vnt. | D19: 6 | E19: 1 | F19: 3 | G19: 34 | H19: 42.6
A20: Preliminari 1 metų suma | D20: =+D17*178+D18*27+D19*390 -> 10459 | E20: =+E17*178+E18*27+E19*390 -> 20995 | F20: 28637 | G20: 21190 | H20: 49954
A21: Maksimali POD suma | D21: =+D20*3*1.3 -> 40790.1 | E21: =+E20*3*1.3 -> 81880.5 | F21: 111684.3 | G21: 82641 | H21: 194820.6
A23: 5. | B23: Sodmenų transportavimo paslaugos | C23: Mato vnt. | D23: Preliminarios paslaugų apimtys
D24: Rokiškio regioninis padalinys 2 | E24: Rokiškio regioninis padalinys 3
A25: Pirkimo objekto dalies numeris | D25: 64 | E25: 65
A26: 12. | B26: Sodmenų transportavimo paslaugos | C26: km | D26: 4000 | E26: 4000
A27: Preliminari 1 metų suma | D27: =+D26*1.5 -> 6000 | E27: =+E26*1.5 -> 6000
A28: Maksimali POD suma | D28: =+D27*3*1.3 -> 23400 | E28: =+E27*3*1.3 -> 23400

Sheet Šakiai
A1: VĮ Valstybinių miškų urėdijos Šakių regioninio padalinio informacija apie perkamus miškininkystės paslaugų kiekius 2025 metams
A2: Eil. | B2: Paslaugų grupės ir paslaugų pavadinimai | C2: Preliminarios paslaugų apimtys
A3: 1 | B3: Želdaviečių paruošimas miškų sodinimui, želdinių ir žėlinių priežiūra, jaunuolynų ugdymas, griovių šlaitų ir pagriovių, pakelių, kvartalinių ir ribinių linijų priežiūra | C3: Mato vnt. | D3: Lekėčių girininkija 1 | E3: Gerdžių girininkija 1 | F3: Šakių girininkija | G3: Baltkojų girininkija 1
A4: Pirkimo objekto dalies numeris | D4: 66 | E4: 67 | F4: 68 | G4: 69
A5: 1. | B5: Želdavietės paruošimas miško sodmenų sodinimui šalinant nepageidaujamus medžius, krūmus, žolinę augmeniją | C5: ha
A6: 2. | B6: Miško želdinių ir žėlinių priežiūra šalinant žabus ir žolinę augmeniją | C6: ha | D6: 50 | E6: 50 | F6: 40 | G6: 50
A7: 3. | B7: Jaunuolynų ugdymas ir/ar retinimo kirtimai, negaminant likvidinės medienos | C7: ha | D7: 15
A8: 4. | B8: Griovių šlaitų ir pagriovių priežiūra | C8: ha
A9: 5. | B9: Pakelių priežiūra | C9: km
A10: 6. | B10: kvartalinių ir ribinių linijų priežūra | C10: km
A11: Preliminari 1 metų suma | D11: =+D5*301+D6*263+D7*299+D8*301+D9*53+D10*126 -> 17635 | E11: =+E5*301+E6*263+E7*299+E8*301+E9*53+E10*126 -> 13150 | F11: 10520 | G11: 13150
A12: Maksimali POD suma | D12: =+D11*3*1.3 -> 68776.5 | E12: =+E11*3*1.3 -> 51285 | F12: 41028 | G12: 51285
A14: 3. | B14: Miško sodmenų sodinimas, želdinių ir žėlinių medelių ir jų liemenų apsauga nuo kanopinių žvėrių bei vabzdžių daromos žalos | C14: Mato vnt. | D14: Preliminarios paslaugų apimtys
D15: Lekėčių girininkija 2 | E15: Baltkojų girininkija 2 | F15: Gerdžių girininkija 2 | G15: Lekėčių girininkija 3
A16: Pirkimo objekto dalies numeris | D16: 70 | E16: 71 | F16: 72 | G16: 73
A17: 8. | B17: Miško atkūrimas, įveisimas ir atsodinimas (medelių ir krūmų sodinimas) | C17: tūkst. vnt. | D17: 50 | G17: 70
A18: 9. | B18: Želdinių, žėlinių apsauga nuo kanopinių žvėrių bei vabzdžių daromos žalos | C18: tūkst. vnt. | E18: 100 | F18: 170
A19: 10. | B19: Želdinių, žėlinių ir medelių kamienų apsauga nuo kanopinių žvėrių daromos žalos | C19: tūkst. vnt.
A20: Preliminari 1 metų suma | D20: =+D17*178+D18*27+D19*390 -> 8900 | E20: =+E17*178+E18*27+E19*390 -> 2700 | F20: 4590 | G20: 12460
A21: Maksimali POD suma | D21: =+D20*3*1.3 -> 34710 | E21: =+E20*3*1.3 -> 10530 | F21: 17901 | G21: 48594

Sheet Šalčininkai
A1: VĮ Valstybinių miškų urėdijos Šalčininkų regioninio padalinio informacija apie perkamus miškininkystės paslaugų kiekius 2025 metams
A2: Eil. | B2: Paslaugų grupės ir paslaugų pavadinimai | D2: Preliminarios paslaugų apimtys
A3: 1 | B3: Želdaviečių paruošimas miškų sodinimui, želdinių ir žėlinių priežiūra, jaunuolynų ugdymas, griovių šlaitų ir pagriovių, pakelių, kvartalinių ir ribinių linijų priežiūra | C3: Mato vnt. | D3: Jašiūnų girininkija 1 | E3: Kenos girininkija 1 | F3: Parudaminos girininkija 1 | G3: Poškonių girininkija 1 | H3: Rūdninkų girininkija 1 | I3: Šalčininkėlių girininkija 1
A4: Pirkimo objekto dalies numeris | D4: 74 | E4: 75 | F4: 76 | G4: 77 | H4: 78 | I4: 79
A5: 1. | B5: Želdavietės paruošimas miško sodmenų sodinimui šalinant nepageidaujamus medžius, krūmus, žolinę augmeniją | C5: ha | E5: 48.1 | F5: 35.7 | I5: 38.9
A6: 2. | B6: Miško želdinių ir žėlinių priežiūra šalinant žabus ir žolinę augmeniją | C6: ha | D6: 41.1 | E6: 45.8 | F6: 11.4 | G6: 90 | H6: 90 | I6: 3.2
A7: 3. | B7: Jaunuolynų ugdymas ir/ar retinimo kirtimai, negaminant likvidinės medienos | C7: ha | D7: 23.1 | F7: 4.1 | G7: 53 | H7: 20
A8: 4. | B8: Griovių šlaitų ir pagriovių priežiūra | C8: ha | I8: 8
A9: 5. | B9: Pakelių priežiūra | C9: km
A10: 6. | B10: kvartalinių ir ribinių linijų priežūra | C10: km | E10: 10 | I10: 55
A11: Preliminari 1 metų suma | D11: =+D5*301+D6*263+D7*299+D8*301+D9*53+D10*126 -> 17716.2 | E11: =+E5*301+E6*263+E7*299+E8*301+E9*53+E10*126 -> 27783.5 | F11: 14969.8 | G11: 39517 | H11: 29650 | I11: 21888.5
A12: Maksimali POD suma | D12: =+D11*3*1.3 -> 69093.18 | E12: =+E11*3*1.3 -> 108355.65 | F12: 58382.22 | G12: 154116.3 | H12: 115635 | I12: 85365.15
A14: 3. | B14: Miško sodmenų sodinimas, želdinių ir žėlinių medelių ir jų liemenų apsauga nuo kanopinių žvėrių bei vabzdžių daromos žalos | C14: Mato vnt. | D14: Preliminarios paslaugų apimtys
D15: Jašiūnų girininkija 2 | E15: Kenos girininkija 2 | F15: Parudaminos girininkija 2 | G15: Poškonių girininkija 2 | H15: Rūdninkų girininkija 2 | I15: Šalčininkėlių girininkija 2
A16: Pirkimo objekto dalies numeris | D16: 80 | E16: 81 | F16: 82 | G16: 83 | H16: 84 | I16: 85
A17: 8. | B17: Miško atkūrimas, įveisimas ir atsodinimas (medelių ir krūmų sodinimas) | C17: tūkst. vnt. | D17: 215.75 | E17: 354.1 | F17: 44.6 | G17: 192.3 | H17: 162.15 | I17: 130.1
A18: 9. | B18: Želdinių, žėlinių apsauga nuo kanopinių žvėrių bei vabzdžių daromos žalos | C18: tūkst. vnt. | D18: 72.5 | E18: 5 | F18: 13 | G18: 135 | H18: 60
A19: 10. | B19: Želdinių, žėlinių ir medelių kamienų apsauga nuo kanopinių žvėrių daromos žalos | C19: tūkst. vnt.
A20: Preliminari 1 metų suma | D20: =+D17*178+D18*27+D19*390 -> 40361 | E20: =+E17*178+E18*27+E19*390 -> 63164.8 | F20: 8289.8 | G20: 37874.4 | H20: 30482.7 | I20: 23157.8
A21: Maksimali POD suma | D21: =+D20*3*1.3 -> 157407.9 | E21: =+E20*3*1.3 -> 246342.72 | F21: 32330.22 | G21: 147710.16 | H21: 118882.53 | I21: 90315.42

Sheet Šilutė
A1: VĮ Valstybinių miškų urėdijos Šilutės regioninio padalinio informacija apie perkamus miškininkystės paslaugų kiekius 2025 metams
A2: Eil. | B2: Paslaugų grupės ir paslaugų pavadinimai | D2: Preliminarios paslaugų apimtys
A3: 1 | B3: Želdaviečių paruošimas miškų sodinimui, želdinių ir žėlinių priežiūra, jaunuolynų ugdymas, griovių šlaitų ir pagriovių, pakelių, kvartalinių ir ribinių linijų priežiūra | C3: Mato vnt. | D3: Rambyno girininkija
A4: Pirkimo objekto dalies numeris | D4: 86
A5: 1. | B5: Želdavietės paruošimas miško sodmenų sodinimui šalinant nepageidaujamus medžius, krūmus, žolinę augmeniją | C5: ha | D5: 0
A6: 2. | B6: Miško želdinių ir žėlinių priežiūra šalinant žabus ir žolinę augmeniją | C6: ha | D6: 95
A7: 3. | B7: Jaunuolynų ugdymas ir/ar retinimo kirtimai, negaminant likvidinės medienos | C7: ha | D7: 40
A8: 4. | B8: Griovių šlaitų ir pagriovių priežiūra | C8: ha | D8: 0
A9: 5. | B9: Pakelių priežiūra | C9: km | D9: 0
A10: 6. | B10: kvartalinių ir ribinių linijų priežūra | C10: km | D10: 0
A11: Preliminari 1 metų suma | D11: =+D5*301+D6*263+D7*299+D8*301+D9*53+D10*126 -> 36945
A12: Maksimali POD suma | D12: =+D11*3*1.3 -> 144085.5
A14: 3. | B14: Miško sodmenų sodinimas, želdinių ir žėlinių medelių ir jų liemenų apsauga nuo kanopinių žvėrių bei vabzdžių daromos žalos | C14: Mato vnt. | D14: Preliminarios paslaugų apimtys
D15: Šilutės girininkija
A16: Pirkimo objekto dalies numeris | D16: 87
A17: 8. | B17: Miško atkūrimas, įveisimas ir atsodinimas (medelių ir krūmų sodinimas) | C17: tūkst. vnt. | D17: 140
A18: 9. | B18: Želdinių, žėlinių apsauga nuo kanopinių žvėrių bei vabzdžių daromos žalos | C18: tūkst. vnt. | D18: 300
A19: 10. | B19: Želdinių, žėlinių ir medelių kamienų apsauga nuo kanopinių žvėrių daromos žalos | C19: tūkst. vnt. | D19: 0
A20: Preliminari 1 metų suma | D20: =+D17*178+D18*27+D19*390 -> 33020
A21: Maksimali POD suma | D21: =+D20*3*1.3 -> 128778

Sheet Švenčionėliai
A1: VĮ Valstybinių miškų urėdijos Švenčionėlių regioninio padalinio informacija apie perkamus miškininkystės paslaugų kiekius
A2: Eil. | B2: Paslaugų grupės ir paslaugų pavadinimai | C2: Preliminarios paslaugų apimtys
A3: 1 | B3: Želdaviečių paruošimas miškų sodinimui, želdinių ir žėlinių priežiūra, jaunuolynų ugdymas, griovių šlaitų ir pagriovių, pakelių, kvartalinių ir ribinių linijų priežiūra | C3: Mato vnt. | D3: Sarios girininkija 1 | E3: Lakajos girininkija 1 | F3: Žeimenos girininkija 1
A4: Pirkimo objekto dalies numeris | D4: 88 | E4: 89 | F4: 90
A5: 1. | B5: Želdavietės paruošimas miško sodmenų sodinimui šalinant nepageidaujamus medžius, krūmus, žolinę augmeniją | C5: ha
A6: 2. | B6: Miško želdinių ir žėlinių priežiūra šalinant žabus ir žolinę augmeniją | C6: ha | D6: 20 | E6: 120 | F6: 60
A7: 3. | B7: Jaunuolynų ugdymas ir/ar retinimo kirtimai, negaminant likvidinės medienos | C7: ha | E7: 20
A8: 4. | B8: Griovių šlaitų ir pagriovių priežiūra | C8: ha
A9: 5. | B9: Pakelių priežiūra | C9: km
A10: 6. | B10: kvartalinių ir ribinių linijų priežūra | C10: km | E10: 6
A11: Preliminari 1 metų suma | D11: =+D5*301+D6*263+D7*299+D8*301+D9*53+D10*126 -> 5260 | E11: =+E5*301+E6*263+E7*299+E8*301+E9*53+E10*126 -> 38296 | F11: 15780
A12: Maksimali POD suma | D12: =+D11*3*1.3 -> 20514 | E12: =+E11*3*1.3 -> 149354.4 | F12: 61542
A14: 3. | B14: Miško sodmenų sodinimas, želdinių ir žėlinių medelių ir jų liemenų apsauga nuo kanopinių žvėrių bei vabzdžių daromos žalos | C14: Mato vnt. | D14: Preliminarios paslaugų apimtys
D15: Sarios girininkija 2 | E15: Antaliedės girininkija | F15: Lakajos girininkija 2 | G15: Žeimenos girininkija 2
A16: Pirkimo objekto dalies numeris | D16: 91 | E16: 92 | F16: 93 | G16: 94
A17: 8. | B17: Miško atkūrimas, įveisimas ir atsodinimas (medelių ir krūmų sodinimas) | C17: tūkst. vnt.
A18: 9. | B18: Želdinių, žėlinių apsauga nuo kanopinių žvėrių bei vabzdžių daromos žalos | C18: tūkst. vnt. | D18: 270 | E18: 100 | F18: 600 | G18: 350
A19: 10. | B19: Želdinių, žėlinių ir medelių kamienų apsauga nuo kanopinių žvėrių daromos žalos | C19: tūkst. vnt.
A20: Preliminari 1 metų suma | D20: =+D17*178+D18*27+D19*390 -> 7290 | E20: =+E17*178+E18*27+E19*390 -> 2700 | F20: 16200 | G20: 9450
A21: Maksimali POD suma | D21: =+D20*3*1.3 -> 28431 | E21: =+E20*3*1.3 -> 10530 | F21: 63180 | G21: 36855
